bitfinex-derivatives/quotes_BTCF0:USTF0_20251011
["timestamp","ask_amount","ask_price","bid_price","bid_amount"]
[1760212901085,1.02258946,111160.0,111150.0,0.25625]
[1760212901388,0.0898679,111160.0,111150.0,0.25625]
[1760212901683,1.02258946,111160.0,111150.0,0.25625]
[1760212901879,1.02258946,111160.0,111150.0,0.25725]
[1760212902081,0.4506679,111160.0,111150.0,0.25725]
[1760212902283,1.02258946,111160.0,111150.0,0.25725]
[1760212902688,1.02258946,111160.0,111150.0,0.25825]
[1760212904180,0.3608,111170.0,111160.0,0.03482]
[1760212904387,0.47328301,111170.0,111160.0,0.25482]
[1760212904586,0.4506598,111170.0,111160.0,0.25482]
[1760212904783,0.36091179,111180.0,111170.0,0.03482]
[1760212904988,0.45076349,111180.0,111170.0,0.27482]
[1760212905187,0.08996349,111180.0,111170.0,0.27482]
[1760212905385,0.00011179,111180.0,111170.0,1.1254797]
[1760212905787,0.08996349,111180.0,111170.0,0.67482]
[1760212905988,0.00011179,111180.0,111170.0,1.1254797]
[1760212906888,0.08996349,111180.0,111170.0,1.03562]
[1760212907391,0.08996349,111180.0,111170.0,1.03662]
[1760212907986,0.00011179,111180.0,111170.0,1.03662]
[1760212908188,0.00011179,111180.0,111170.0,1.69840126]
[1760212908486,0.0898421,111200.0,111190.0,0.03482]
[1760212908679,0.11254093,111200.0,111190.0,0.27482]
[1760212909395,1.04534663,111200.0,111190.0,0.25349]
[1760212909590,1.04534663,111200.0,111190.0,0.27482]
[1760212910191,0.68454663,111200.0,111190.0,0.27482]
[1760212910387,0.11261847,111200.0,111190.0,0.67482]
[1760212911588,0.02278297,111200.0,111190.0,0.67482]
[1760212912493,0.11261847,111200.0,111190.0,0.67482]
[1760212912694,0.68454003,111200.0,111190.0,0.67482]
[1760212912891,0.68454003,111200.0,111190.0,0.25349]
[1760212913091,0.68454003,111200.0,111190.0,0.27482]
[1760212913296,0.11261847,111200.0,111190.0,0.27482]
[1760212913894,0.68454003,111200.0,111190.0,0.27482]
[1760212914997,0.68454003,111200.0,111190.0,0.25349]
[1760212915296,0.68454003,111200.0,111190.0,0.27482]
[1760212915497,1.04534003,111200.0,111190.0,0.25349]
[1760212915690,1.44534003,111200.0,111190.0,0.25349]
[1760212915892,0.0898436,111190.0,111180.0,0.01349]
[1760212916090,1.04526399,111190.0,111180.0,0.27349]
[1760212916801,1.04526399,111190.0,111180.0,0.29482]
[1760212918296,0.68446399,111190.0,111180.0,0.29482]
[1760212918995,0.11254243,111190.0,111180.0,0.29482]
[1760212919195,0.68446399,111190.0,111180.0,0.29482]
[1760212919595,0.68446399,111190.0,111180.0,0.27349]
[1760212920200,1.08446399,111190.0,111180.0,0.27349]
[1760212920396,1.44526399,111190.0,111180.0,0.27349]
[1760212921602,1.04526399,111190.0,111180.0,0.29482]
[1760212921803,0.11254243,111190.0,111180.0,0.29482]
[1760212921997,1.04526399,111190.0,111180.0,0.29482]
[1760212923295,0.02269883,111190.0,111180.0,0.3846717]
[1760212923496,0.02269883,111190.0,111180.0,1.1454717]
[1760212924003,0.6618464,111200.0,111190.0,0.03482]
[1760212924301,0.68439489,111200.0,111190.0,0.29482]
[1760212924895,0.02263263,111200.0,111190.0,1.1454636]
[1760212925094,8.414e-05,111200.0,111190.0,1.71738516]
[1760212925296,0.3608,111220.0,111210.0,0.1246474]
[1760212925597,1.02252966,111240.0,111220.0,0.03482]
[1760212925795,0.09598357,111240.0,111230.0,0.03482]
[1760212925999,0.09598357,111240.0,111230.0,0.3846313]
[1760212926000,0.02255851,111240.0,111230.0,0.3846313]
[1760212926301,0.73488,111250.0,111240.0,0.03482]
[1760212926496,0.75742128,111250.0,111240.0,0.29482]
[1760212926897,0.84721638,111250.0,111240.0,0.29482]
[1760212927202,1.41913794,111250.0,111240.0,0.27349]
[1760212927394,1.81911999,111250.0,111240.0,0.27349]
[1760212927594,1.76783779,111250.0,111240.0,0.27349]
[1760212928201,1.84106246,111250.0,111240.0,0.26]
[1760212928403,0.0898032,111240.0,111230.0,0.01349]
[1760212928597,0.47312653,111240.0,111230.0,0.28349]
[1760212928902,1.38499782,111240.0,111230.0,0.30482]
[1760212929107,1.29519462,111240.0,111230.0,0.30482]
[1760212929300,0.38332333,111240.0,111230.0,0.30482]
[1760212929493,0.89890337,111250.0,111240.0,0.03482]
[1760212929692,0.75839292,111250.0,111240.0,0.30482]
[1760212930002,0.73588,111250.0,111240.0,0.30482]
[1760212930396,0.37508,111250.0,111240.0,0.7732932]
[1760212930600,0.001,111250.0,111240.0,1.1340932]
[1760212930797,0.52152121,111270.0,111240.0,1.1340932]
[1760212930992,0.4505793,111270.0,111260.0,0.01349]
[1760212931197,0.4505793,111270.0,111260.0,0.23349]
[1760212932105,0.96245059,111270.0,111260.0,0.23349]
[1760212932500,0.4515793,111270.0,111260.0,0.23349]
[1760212933399,0.3618,111270.0,111260.0,0.23349]
[1760212933803,0.451579,111270.0,111260.0,0.25482]
[1760212934004,0.3618,111270.0,111260.0,0.25482]
[1760212934203,0.001,111270.0,111260.0,0.25482]
[1760212934506,0.451579,111270.0,111260.0,0.25482]
[1760212934806,0.090779,111270.0,111260.0,0.25482]
[1760212935105,0.450579,111270.0,111260.0,0.25482]
[1760212935501,0.52062955,111280.0,111270.0,0.01343]
[1760212935696,0.52062955,111280.0,111270.0,0.25617]
[1760212938304,0.43085225,111280.0,111270.0,0.25617]
[1760212938504,0.3608,111280.0,111270.0,0.25617]
[1760212938706,0.4505709,111280.0,111270.0,0.25617]
[1760212939109,0.4505709,111280.0,111270.0,0.23343]
[1760212939305,0.96244219,111280.0,111270.0,0.23343]
[1760212939503,1.03530239,111280.0,111270.0,0.23343]
[1760212939704,1.43530239,111280.0,111270.0,0.23343]
[1760212940304,1.4577678,111280.0,111270.0,0.23343]
[1760212940804,1.4587678,111280.0,111270.0,0.23343]
[1760212941510,1.4577678,111280.0,111270.0,0.22]
[1760212941704,1.4587678,111280.0,111270.0,0.22]
[1760212941901,1.4587678,111280.0,111270.0,0.23343]
[1760212942210,1.0587678,111280.0,111270.0,0.23343]
[1760212942402,0.94689651,111280.0,111270.0,0.25617]
[1760212942603,0.4346602,111280.0,111270.0,0.25617]
[1760212943007,0.3618,111280.0,111270.0,0.25617]
[1760212943306,0.451571,111280.0,111270.0,0.25617]
[1760212943506,0.451571,111280.0,111270.0,0.23343]
[1760212943906,1.36344229,111280.0,111270.0,0.23343]
[1760212944212,1.38591707,111280.0,111270.0,0.23343]
[1760212944412,1.38491707,111280.0,111270.0,0.23343]
[1760212944809,1.38491707,111280.0,111270.0,0.22]
[1760212945308,1.38591707,111280.0,111270.0,0.22]
[1760212946011,1.38591707,111280.0,111270.0,0.23343]
[1760212946611,1.38491707,111280.0,111270.0,0.22]
[1760212946910,1.38591707,111280.0,111270.0,0.22]
[1760212947116,0.0897871,111260.0,111250.0,0.17349]
[1760212947414,0.96245839,111260.0,111250.0,0.26349]
[1760212947615,0.4505871,111260.0,111250.0,0.28623]
[1760212947807,0.0897871,111260.0,111250.0,0.28623]
[1760212948004,0.3608,111270.0,111260.0,0.03617]
[1760212948209,0.3608,111270.0,111260.0,0.29617]
[1760212948409,0.9439677,111280.0,111270.0,0.01343]
[1760212948410,0.52086941,111280.0,111270.0,0.01343]
[1760212948611,0.54337844,111280.0,111270.0,0.25617]
[1760212949112,1.05524973,111280.0,111270.0,0.25617]
[1760212949613,1.05524973,111280.0,111270.0,0.23343]
[1760212950115,1.45524973,111280.0,111270.0,0.23343]
[1760212950504,1.45524973,111280.0,111270.0,0.22]
[1760212951812,1.45624973,111280.0,111270.0,0.22]
[1760212953116,0.0897789,111270.0,111260.0,0.01343]
[1760212953416,0.98495922,111270.0,111260.0,0.27343]
[1760212953808,1.38495922,111270.0,111260.0,0.15]
[1760212954010,0.089795,111250.0,111240.0,0.01349]
[1760212954209,0.98497532,111250.0,111240.0,0.26349]
[1760212954411,0.47310403,111250.0,111240.0,0.28623]
[1760212955013,0.47310403,111250.0,111240.0,0.68623]
[1760212955216,0.11230403,111250.0,111240.0,0.68623]
[1760212956206,0.62417532,111250.0,111240.0,0.26349]
[1760212956406,0.98497532,111250.0,111240.0,0.26349]
[1760212956615,1.41712147,111250.0,111240.0,0.25]
[1760212957018,0.90525018,111250.0,111240.0,0.26343]
[1760212957208,1.41712147,111250.0,111240.0,0.26343]
[1760212957408,1.41812147,111250.0,111240.0,0.25]
[1760212958815,0.90625018,111250.0,111240.0,0.26343]
[1760212959017,1.41812147,111250.0,111240.0,0.26343]
[1760212960610,1.01812147,111250.0,111240.0,0.26343]
[1760212961209,0.47410403,111250.0,111240.0,0.2849]
[1760212961415,0.38430903,111250.0,111240.0,0.2849]
[1760212961610,0.47410403,111250.0,111240.0,0.6849]
[1760212962417,0.47410403,111250.0,111240.0,0.2849]
[1760212962715,0.98597532,111250.0,111240.0,0.26343]
[1760212963316,1.38597532,111250.0,111240.0,0.25]
[1760212964910,0.0898031,111240.0,111230.0,0.01343]
[1760212965111,1.05746031,111240.0,111230.0,0.26343]
[1760212965505,0.54558902,111240.0,111230.0,0.26343]
[1760212965711,1.05746031,111240.0,111230.0,0.26343]
[1760212965915,0.54558902,111240.0,111230.0,0.26343]
[1760212966117,1.05746031,111240.0,111230.0,0.26343]
[1760212967313,1.05746031,111240.0,111230.0,0.25]
[1760212967518,0.0898192,111220.0,111210.0,0.05343]
[1760212967716,0.0898273,111210.0,111200.0,0.01378]
[1760212967912,0.96249859,111210.0,111200.0,0.26378]
[1760212968112,0.98495622,111210.0,111200.0,0.26378]
[1760212968614,0.98495622,111210.0,111200.0,0.25]
[1760212968819,0.98495622,111210.0,111200.0,0.05]
[1760212969015,0.87308493,111210.0,111200.0,0.05]
[1760212969221,0.0888354,111200.0,111190.0,0.01389231]
[1760212969417,0.98396432,111200.0,111190.0,0.28389231]
[1760212970314,1.38396432,111200.0,111190.0,0.28389231]
[1760212970717,1.38496432,111200.0,111190.0,0.28389231]
[1760212971018,1.38496432,111200.0,111190.0,0.27011231]
[1760212971218,1.39382261,111200.0,111190.0,0.27011231]
[1760212971520,1.4937411,111200.0,111190.0,0.03011231]
[1760212972022,0.0898596,111170.0,111160.0,0.01378]
[1760212972218,0.96253089,111170.0,111160.0,0.27378]
[1760212972417,1.03465082,111170.0,111160.0,0.27378]
[1760212972816,1.03475307,111170.0,111160.0,0.27378]
[1760212973016,0.0898677,111160.0,111150.0,0.01378]
[1760212973210,0.0898758,111150.0,111140.0,0.01378]
[1760212973415,0.0898758,111150.0,111140.0,0.23378]
[1760212973416,0.96254709,111150.0,111140.0,0.23378]
[1760212973611,0.96154709,111150.0,111140.0,0.23378]
[1760212974019,0.96163325,111150.0,111140.0,0.23378]
[1760212974222,0.96063325,111150.0,111140.0,0.23378]
[1760212974718,1.06055174,111150.0,111140.0,0.23378]
[1760212974917,1.08288919,111150.0,111140.0,0.23378]
[1760212975221,1.05955174,111150.0,111140.0,0.03378]
[1760212975616,1.05955174,111150.0,111140.0,0.02]
[1760212975819,0.089892,111130.0,111120.0,0.01378]
[1760212976019,0.96156329,111130.0,111120.0,0.25378]
[1760212976316,0.96056329,111130.0,111120.0,0.25378]
[1760212976519,0.96056329,111130.0,111120.0,0.27621]
[1760212976724,0.448692,111130.0,111120.0,0.27621]
[1760212976920,0.448692,111130.0,111120.0,0.27821]
[1760212977224,0.448692,111130.0,111120.0,0.28021]
[1760212977423,0.087892,111130.0,111120.0,0.28021]
[1760212977927,0.96255599,111140.0,111130.0,0.01378]
[1760212978119,0.96255599,111140.0,111130.0,0.27378]
[1760212979121,0.97149289,111140.0,111130.0,0.27378]
[1760212979320,0.4596216,111140.0,111130.0,0.27478]
[1760212979515,0.97149289,111140.0,111130.0,0.27578]
[1760212981728,1.07141138,111140.0,111130.0,0.04578]
[1760212982134,1.07141138,111140.0,111110.0,0.07378]
[1760212982135,0.0899001,111120.0,111110.0,0.07378]
[1760212982326,0.96265986,111120.0,111110.0,0.28621]
[1760212983229,0.96265986,111120.0,111110.0,0.26378]
[1760212983732,0.96265986,111120.0,111110.0,0.251]
[1760212983733,1.03529413,111120.0,111110.0,0.251]
[1760212983927,1.03529413,111120.0,111100.0,0.01306007]
[1760212983928,0.0899082,111110.0,111100.0,0.01306007]
[1760212984123,0.96257949,111110.0,111100.0,0.24306007]
[1760212984332,0.96257949,111110.0,111100.0,0.26549007]
[1760212985135,0.96157949,111110.0,111100.0,0.26549007]
[1760212985637,0.96157949,111110.0,111100.0,0.24306007]
[1760212986136,1.06149798,111110.0,111100.0,0.24406007]
[1760212986627,0.96157949,111110.0,111100.0,0.24406007]
[1760212986832,1.36157949,111110.0,111100.0,0.051]
[1760212987038,1.36157949,111110.0,111100.0,0.261]
[1760212987537,1.36157949,111110.0,111100.0,0.27478]
[1760212988332,1.36157949,111110.0,111100.0,0.27378]
[1760212989435,1.5238023,111110.0,111100.0,0.15]
[1760212989833,0.0899244,111090.0,111080.0,0.01378]
[1760212990037,1.38581107,111090.0,111080.0,0.03]
[1760212990238,0.0899325,111080.0,111070.0,0.01378]
[1760212990534,1.02490811,111080.0,111070.0,0.25378]
[1760212990941,0.36091106,111090.0,111070.0,0.67621]
[1760212991134,1.02501107,111090.0,111080.0,0.03621]
[1760212991340,1.02501107,111090.0,111080.0,0.27378]
[1760212991732,1.52492956,111090.0,111080.0,0.05378]
[1760212991933,1.52492956,111090.0,111080.0,0.04]
[1760212992134,1.52492956,111090.0,111070.0,0.01378]
[1760212992340,1.02490801,111080.0,111070.0,0.16378]
[1760212993236,1.49598557,111080.0,111070.0,0.15]
[1760212993536,1.49598557,111080.0,111050.0,0.0138693]
[1760212993537,0.0899487,111060.0,111050.0,0.0138693]
[1760212993744,1.38582856,111060.0,111050.0,0.1438693]
[1760212994038,2.36000417,111060.0,111050.0,0.0138693]
[1760212994243,0.0899568,111050.0,111040.0,0.01274]
[1760212994437,1.59910802,111050.0,111040.0,0.08274]
[1760212994633,0.089973,111030.0,111020.0,0.01274]
[1760212994835,0.0899811,111020.0,111010.0,0.01274]
[1760212995038,1.10485489,111020.0,111010.0,0.13274]
[1760212995239,1.1039527,111020.0,111010.0,0.13274]
[1760212995741,0.0889892,111010.0,111000.0,0.01274]
[1760212996043,1.02296481,111010.0,111000.0,0.18274]
[1760212996342,1.42296481,111010.0,111000.0,0.18274]
[1760212996543,0.93497561,111010.0,111000.0,0.20405]
[1760212996744,0.3608,111010.0,111000.0,0.60405]
[1760212997038,1.00595183,111020.0,111000.0,0.6940473]
[1760212997242,1.00595183,111020.0,111010.0,0.03405]
[1760212997441,1.09593293,111020.0,111010.0,0.23274]
[1760212998648,1.09693293,111020.0,111010.0,0.25405]
[1760212999045,1.49793293,111020.0,111010.0,0.01274]
[1760212999347,1.49793293,111020.0,110990.0,0.01274]
[1760212999348,0.0899973,111000.0,110990.0,0.01274]
[1760212999545,1.38588624,111000.0,110990.0,0.12274]
[1760213000242,0.81171063,111000.0,110990.0,0.12274]
[1760213000445,0.0900054,110990.0,110980.0,0.01274]
[1760213000643,0.0900054,110990.0,110980.0,0.16274]
[1760213000644,1.02498101,110990.0,110980.0,0.16274]
[1760213001241,1.02498101,110990.0,110980.0,0.15]
[1760213001447,0.0900135,110980.0,110970.0,0.01274]
[1760213001644,1.025098,110980.0,110970.0,0.14274]
[1760213002047,0.36090889,110980.0,110970.0,0.56405]
[1760213002256,0.9350845,110980.0,110970.0,0.56405]
[1760213002448,0.36090889,110980.0,110970.0,0.56405]
[1760213002748,0.00010889,110980.0,110970.0,1.56773721]
[1760213002954,0.73568,111000.0,110990.0,0.01274]
[1760213003143,0.73568,111000.0,110990.0,0.27274]
[1760213003346,0.37488,111000.0,110990.0,0.67274]
[1760213003948,0.37496072,111000.0,110990.0,0.27274]
[1760213004152,1.03913363,111000.0,110990.0,0.27274]
[1760213004454,0.94913633,111000.0,110990.0,0.27274]
[1760213004646,0.37496072,111000.0,110990.0,0.27274]
[1760213004851,0.37496072,111000.0,110990.0,0.67274]
[1760213005154,0.46495802,111000.0,110990.0,0.27274]
[1760213005347,1.39993363,111000.0,110990.0,0.27274]
[1760213005746,0.82575802,111000.0,110990.0,0.27274]
[1760213005951,0.37496072,111000.0,110990.0,0.67274]
[1760213006150,0.37496072,111000.0,110990.0,0.7627454]
[1760213006553,0.37496072,111000.0,110990.0,1.69772101]
[1760213007352,0.4507772,111030.0,111020.0,0.01274]
[1760213007556,0.4507772,111030.0,111020.0,0.24274]
[1760213007757,0.0899772,111030.0,111020.0,0.64274]
[1760213008055,0.4507701,111040.0,111030.0,0.01274]
[1760213008254,0.3608,111040.0,111030.0,0.25274]
[1760213008455,0.3608,111040.0,111030.0,0.65274]
[1760213008456,0.09004458,111040.0,111030.0,0.65274]
[1760213008752,7.968e-05,111040.0,111030.0,1.103513]
[1760213009348,0.66422019,111040.0,111030.0,0.25274]
[1760213009652,1.02502019,111040.0,111030.0,0.25274]
[1760213010452,0.45084458,111040.0,111030.0,0.25274]
[1760213010657,1.02502019,111040.0,111030.0,0.25274]
[1760213011056,1.42502019,111040.0,111020.0,0.01274]
[1760213011255,1.02494861,111030.0,111020.0,0.22]
[1760213011455,0.0899811,111020.0,111010.0,0.01274]
[1760213011757,1.02502024,111020.0,111010.0,0.26274]
[1760213011957,1.42502024,111020.0,111010.0,0.18274]
[1760213012453,1.42502024,111020.0,111010.0,0.17]
[1760213012662,0.0899973,111000.0,110990.0,0.01274]
[1760213012853,1.5992282,111000.0,110990.0,0.25274]
[1760213013058,0.0900054,110990.0,110980.0,0.01274]
[1760213013361,1.02498101,110990.0,110980.0,0.02]
[1760213013556,1.02498581,110990.0,110980.0,0.25274]
[1760213014254,0.00107968,111000.0,110980.0,0.7427535]
[1760213014460,0.00107968,111000.0,110990.0,0.5027454]
[1760213014660,7.968e-05,111000.0,110990.0,0.3527454]
[1760213014850,7.968e-05,111000.0,110990.0,0.7527454]
[1760213015455,7.968e-05,111000.0,110990.0,1.1135454]
[1760213015658,0.93497561,111020.0,111010.0,0.01274]
[1760213015864,0.3608,111020.0,111010.0,0.25274]
[1760213016554,0.4507811,111020.0,111010.0,0.25274]
[1760213016956,1.02495671,111020.0,111010.0,0.25274]
[1760213017559,1.02495211,111030.0,111020.0,0.01274]
[1760213017757,1.02495211,111030.0,111020.0,0.26274]
[1760213017954,0.93497561,111030.0,111020.0,0.26274]
[1760213018152,0.4507729,111030.0,111020.0,0.66274]
[1760213018362,0.0899729,111030.0,111020.0,0.66274]
[1760213018557,0.4507648,111040.0,111030.0,0.01274]
[1760213018751,0.4507648,111040.0,111030.0,0.26274]
[1760213019560,0.0899648,111040.0,111030.0,0.26274]
[1760213019758,1.02493571,111050.0,111040.0,0.01274]
[1760213019957,1.02493571,111050.0,111040.0,0.26274]
[1760213019958,0.4507601,111050.0,111040.0,0.26274]
[1760213020264,1.02493571,111050.0,111040.0,0.26274]
[1760213020858,0.4517567,111050.0,111040.0,0.66274]
[1760213022258,0.002,111050.0,111040.0,0.66274]
[1760213022462,0.0919568,111050.0,111040.0,0.26274]
[1760213022661,1.02693241,111050.0,111040.0,0.26274]
[1760213023064,0.66613241,111050.0,111040.0,0.26274]
[1760213023264,0.0919568,111050.0,111040.0,0.26274]
[1760213023564,0.002,111050.0,111040.0,0.66274]
[1760213024264,0.0919567,111050.0,111040.0,0.66274]
[1760213024968,0.002,111050.0,111040.0,0.66274]
[1760213025163,0.4527568,111050.0,111040.0,0.66274]
[1760213025466,1.02693241,111050.0,111040.0,0.26274]
[1760213025965,1.04925016,111050.0,111040.0,0.26274]
[1760213026363,1.02693241,111050.0,111040.0,0.26274]
[1760213026564,0.4527568,111050.0,111040.0,0.26274]
[1760213026764,0.3628,111050.0,111040.0,0.66274]
[1760213026958,0.002,111050.0,111040.0,1.23691561]
[1760213027158,0.002,111050.0,111040.0,1.68768051]
[1760213028169,0.0899489,111060.0,111050.0,0.01308]
[1760213028366,0.0899489,111060.0,111050.0,0.59388]
[1760213028569,0.66412451,111060.0,111050.0,0.23308]
[1760213028767,1.02492451,111060.0,111050.0,0.23308]
[1760213029067,1.44723641,111060.0,111050.0,0.23308]
[1760213029470,1.44823641,111060.0,111050.0,0.23308]
[1760213030162,0.8740608,111060.0,111050.0,0.23308]
[1760213030362,1.44823641,111060.0,111050.0,0.23308]
[1760213030564,1.44923641,111060.0,111050.0,0.23308]
[1760213030964,1.04923641,111060.0,111050.0,0.23308]
[1760213031168,0.4750608,111060.0,111050.0,0.23308]
[1760213031367,1.04923641,111060.0,111050.0,0.23308]
[1760213031569,0.3851119,111060.0,111050.0,0.23308]
[1760213031774,0.3628,111060.0,111050.0,0.23308]
[1760213031975,0.4527486,111060.0,111050.0,0.23308]
[1760213032876,1.02692421,111060.0,111050.0,0.23308]
[1760213033273,1.04910865,111060.0,111050.0,0.23308]
[1760213034175,0.47493304,111060.0,111050.0,0.25547]
[1760213034373,0.4527486,111060.0,111050.0,0.25547]
[1760213034978,0.4527486,111060.0,111050.0,0.23308]
[1760213035179,0.4527486,111060.0,111050.0,0.25456]
[1760213035677,0.47494399,111060.0,111050.0,0.23308]
[1760213035873,0.47494399,111060.0,111050.0,0.25456]
[1760213035874,1.0491196,111060.0,111050.0,0.25456]
[1760213036073,0.0919486,111060.0,111050.0,0.25456]
[1760213036271,0.002,111060.0,111050.0,0.65456]
[1760213037580,0.0919486,111060.0,111050.0,0.65456]
[1760213037775,0.002,111060.0,111050.0,0.7445167]
[1760213037980,0.002,111060.0,111050.0,1.31869231]
[1760213038382,0.0919486,111060.0,111050.0,1.01536]
[1760213038681,0.0919486,111060.0,111050.0,0.25456]
[1760213038980,0.0919486,111060.0,111050.0,1.01536]
[1760213039979,0.4527486,111060.0,111050.0,0.25456]
[1760213040180,1.02692421,111060.0,111050.0,0.25456]
[1760213041077,0.4527486,111060.0,111050.0,0.25456]
[1760213041882,0.0919486,111060.0,111050.0,0.25456]
[1760213042082,0.4527486,111060.0,111050.0,0.25456]
[1760213042282,0.4527486,111060.0,111050.0,0.23308]
[1760213042283,1.44904862,111060.0,111050.0,0.23308]
[1760213042579,0.0899567,111050.0,111040.0,0.01274]
[1760213042774,1.04705672,111050.0,111040.0,0.25274]
[1760213042979,1.44705672,111050.0,111040.0,0.24]
[1760213043180,1.44705672,111050.0,111040.0,0.11]
[1760213043384,1.04705672,111050.0,111040.0,0.1237]
[1760213043578,1.04705672,111050.0,111040.0,0.14518]
[1760213043773,1.04805672,111050.0,111040.0,0.14518]
[1760213043973,1.44805672,111050.0,111040.0,0.1237]
[1760213044183,1.44905672,111050.0,111040.0,0.11]
[1760213044383,1.44905672,111050.0,111040.0,0.1237]
[1760213044879,2.19675926,111050.0,111040.0,0.11]
[1760213045081,0.0899729,111030.0,111020.0,0.01274]
[1760213045381,0.47265936,111030.0,111020.0,0.27422]
[1760213045684,1.04683497,111030.0,111020.0,0.27422]
[1760213046281,0.38268646,111030.0,111020.0,0.27422]
[1760213046588,0.3608,111040.0,111030.0,0.03518]
[1760213046787,0.0899649,111040.0,111030.0,0.26518]
[1760213047086,0.4507649,111040.0,111030.0,0.26518]
[1760213047476,1.04705555,111040.0,111030.0,0.2437]
[1760213047878,1.04805555,111040.0,111030.0,0.2437]
[1760213048188,1.44805555,111040.0,111030.0,0.2437]
[1760213048692,0.87387994,111040.0,111030.0,0.2437]
[1760213049087,1.44805555,111040.0,111030.0,0.2437]
[1760213049690,1.44805555,111040.0,111020.0,0.01274]
[1760213049691,0.089973,111030.0,111020.0,0.01274]
[1760213049885,1.04705594,111030.0,111020.0,0.17274]
[1760213050086,1.44705594,111030.0,111020.0,0.17274]
[1760213050585,0.0899973,111000.0,110990.0,0.0137]
[1760213050790,1.02497291,111000.0,110990.0,0.2737]
[1760213051592,0.4507973,111000.0,110990.0,0.2737]
[1760213052192,0.96491558,111000.0,110990.0,0.2737]
[1760213052992,0.4507973,111000.0,110990.0,0.2747]
[1760213053188,0.0899973,111000.0,110990.0,0.2747]
[1760213053589,0.0909973,111000.0,110990.0,0.2737]
[1760213054395,0.0909973,111000.0,110990.0,0.29518]
[1760213054793,0.4517973,111000.0,110990.0,0.2737]
[1760213054984,0.96591558,111000.0,110990.0,0.2737]
[1760213055389,1.36591558,111000.0,110990.0,0.26]
[1760213055786,0.8517973,111000.0,110990.0,0.27326]
[1760213055990,1.36591558,111000.0,110990.0,0.27326]
[1760213056185,1.36591558,111000.0,110990.0,0.26]
[1760213056393,1.36591558,111000.0,110990.0,0.27326]
[1760213057095,0.0900054,110990.0,110980.0,0.0137]
[1760213057294,0.96492368,110990.0,110980.0,0.2437]
[1760213057798,0.96492368,110990.0,110980.0,0.23]
[1760213058092,0.96492368,110990.0,110980.0,0.26436]
[1760213058093,0.4508054,110990.0,110980.0,0.26436]
[1760213058288,0.96492368,110990.0,110980.0,0.24326]
[1760213059291,0.96492368,110990.0,110980.0,0.26436]
[1760213059492,0.0900054,110990.0,110980.0,0.26436]
[1760213059692,0.3608,111000.0,110990.0,0.03436]
[1760213059892,0.4507892,111010.0,111000.0,0.03436]
[1760213060196,0.96490748,111010.0,111000.0,0.29436]
[1760213060399,1.36490748,111010.0,110990.0,0.01326]
[1760213060695,0.96491558,111000.0,110990.0,0.23326]
[1760213060895,0.96591558,111000.0,110990.0,0.23326]
[1760213061495,0.4517973,111000.0,110990.0,0.25436]
[1760213061694,0.3618,111000.0,110990.0,0.25436]
[1760213061893,0.3618,111000.0,110990.0,0.65436]
[1760213062101,0.4517973,111000.0,110990.0,0.65436]
[1760213062291,0.4507973,111000.0,110990.0,0.65436]
[1760213062992,0.4507973,111000.0,110990.0,0.23326]
[1760213063185,0.3608,111000.0,110990.0,0.65436]
[1760213063388,0.3608,111020.0,111010.0,0.01326]
[1760213063589,0.3608,111020.0,111010.0,0.66326]
[1760213063889,0.3608,111030.0,111020.0,0.01326]
[1760213064094,0.3608,111030.0,111020.0,0.27326]
[1760213064403,0.450767,111040.0,111030.0,0.01326]
[1760213064596,0.450767,111040.0,111030.0,0.23326]
[1760213065190,0.96488528,111040.0,111030.0,0.23326]
[1760213065400,0.450767,111040.0,111030.0,0.23326]
[1760213065995,0.451767,111040.0,111030.0,0.63326]
[1760213066195,0.451767,111040.0,111030.0,0.25436]
[1760213066799,0.451767,111040.0,111030.0,0.23326]
[1760213067402,0.451767,111040.0,111030.0,0.25436]
[1760213067803,0.451767,111040.0,111030.0,0.23326]
[1760213068106,0.96588528,111040.0,111030.0,0.23326]
[1760213068304,0.0899729,111030.0,111020.0,0.01326]
[1760213068504,0.96489118,111030.0,111020.0,0.25326]
[1760213070202,1.36489118,111030.0,111020.0,0.17]
[1760213070400,1.38686936,111030.0,111020.0,0.17]
[1760213070607,0.0899811,111020.0,111010.0,0.01326]
[1760213070800,0.96489938,111020.0,111010.0,0.23326]
[1760213071298,0.4507811,111020.0,111010.0,0.25478]
[1760213071503,0.4507811,111020.0,111010.0,0.65478]
[1760213072103,0.4517811,111020.0,111010.0,0.65478]
[1760213072504,0.4507811,111020.0,111010.0,0.65478]
[1760213072696,0.4517811,111020.0,111010.0,0.25478]
[1760213073101,0.4517811,111020.0,111010.0,0.23326]
[1760213074505,0.4517811,111020.0,111010.0,0.25478]
[1760213074906,0.3618,111020.0,111010.0,0.65478]
[1760213075305,0.001,111020.0,111010.0,0.65478]
[1760213076205,0.4507769,111030.0,111020.0,0.03431]
[1760213076401,0.4507769,111030.0,111020.0,0.25431]
[1760213076600,0.4507769,111030.0,111020.0,0.23279]
[1760213077202,1.36489518,111030.0,111020.0,0.23279]
[1760213077906,1.36489518,111030.0,111020.0,0.22]
[1760213078104,0.0899811,111020.0,111010.0,0.01326]
[1760213078307,0.0899892,111010.0,111000.0,0.01326]
[1760213078604,0.96490748,111010.0,111000.0,0.22326]
[1760213079901,1.36590748,111010.0,111000.0,0.21]
[1760213080098,0.96590748,111010.0,111000.0,0.22279]
[1760213081911,1.36590748,111010.0,111000.0,0.22279]
[1760213082113,1.36690748,111010.0,111000.0,0.1179528]
[1760213082402,0.0900054,110990.0,110980.0,0.06279]
[1760213082613,0.96492368,110990.0,110980.0,0.21279]
[1760213083506,1.36492368,110990.0,110980.0,0.1476066]
[1760213083710,0.0900216,110970.0,110960.0,0.3734774]
[1760213083910,0.96493988,110970.0,110960.0,0.3334774]
[1760213084707,0.4508216,110970.0,110960.0,0.3334774]
[1760213084910,0.4508216,110970.0,110960.0,0.3546974]
[1760213085108,0.4508216,110970.0,110960.0,0.3556974]
[1760213085504,0.4508216,110970.0,110960.0,0.7556974]
[1760213085704,0.3608,110980.0,110960.0,0.7546974]
[1760213085904,0.4508174,110980.0,110970.0,0.03371]
[1760213086106,0.3608,110980.0,110970.0,0.28371]
[1760213086307,0.4508093,110990.0,110980.0,0.01271]